Cogmind - Beta 10.2 @@@ ROGUE MODE // 2021.07.16 @ 12:07:25 Player: Demise Result: Destroyed by as-83364 with Assembled Rifle Performance ------------- Evolutions (0) 0 Regions Visited (2) 400 Robots Destroyed (30) 150 Value Destroyed (626) 626 Prototype IDs (2) 40 Alien Tech Used (0) 0 Bonus (0) 0 TOTAL SCORE: 1216 Bonus ------- None Cogmind --------- Core Integrity 0/250 Matter 255/300 Energy 100/100 System Corruption 5% Temperature Cool (4) Movement Rolling (100) Ox1 Location -10/Mines Parts ------- > --- POWER (1) -------- (None) > --- PROPULSION (2) --- Armored Wheel Armored Wheel > --- UTILITY (2) ------ Medium Storage Unit Large Storage Unit > --- WEAPON (2) ------- Light Assault Rifle Light Cannon > --- INVENTORY (14) --- Light Nuclear Core Armored Wheel Armored Wheel Heat Sink Medium Storage Unit Structural Scanner Heavy EM Pulse Gun Heavy EM Pulse Gun Particle Gun Grenade Launcher Grenade Launcher Datajack Mining Laser Peak State ------------ > --- POWER ------------ Light Nuclear Core > --- PROPULSION ------- Armored Wheel Armored Wheel > --- UTILITY ---------- Medium Storage Unit Large Storage Unit > --- WEAPON ----------- Light Assault Rifle Light Cannon > --- INVENTORY -------- Ion Engine Light Nuclear Core Armored Wheel Armored Wheel Heat Sink Medium Storage Unit Structural Scanner EM Pulse Gun Heavy EM Pulse Gun Particle Gun Grenade Launcher Grenade Launcher Datajack Mining Laser [Rating: 13] Favorites ----------- Power Light Nuclear Core Engine Light Ion Engine Power Core Light Nuclear Core Propulsion Light Treads Treads Light Treads Wheel Armored Wheel Utility Medium Storage Unit Storage Medium Storage Unit Processor Signal Interpreter Weapon Light Assault Rifle Ballistic Gun Light Assault Rifle Ballistic Cannon Light Cannon Special Weapon Mining Laser Build | -11 -10 -10 ------- Run | Scr Mat Min Slots Evolved . | . . . Power . | . . . Propulsion . | . . . Utility . | . . . Weapon . | . . . Parts Attached 20 | 5 15 . Power 3 | 1 2 . Engine 2 | 1 1 . Core 1 | . 1 . Reactor . | . . . Propulsion 6 | 2 4 . Treads 4 | 2 2 . Leg . | . . . Wheel 2 | . 2 . Hover . | . . . Flight . | . . . Utility 5 | . 5 . Device . | . . . Storage 4 | . 4 . Processor 1 | . 1 . Hackware . | . . . Protection . | . . . Artifact . | . . . Weapon 6 | 2 4 . Energy Gun . | . . . Energy Cannon . | . . . Ballistic Gun 4 | 2 2 . Ballistic Cannon 1 | . 1 . Launcher . | . . . Special Weapon 1 | . 1 . Impact Weapon . | . . . Slashing Weapon . | . . . Piercing Weapon . | . . . Special Melee Weapon . | . . . Unidentified Prototypes . | . . . Parts Lost 2 | . 1 1 Power 1 | . . 1 Propulsion . | . . . Utility . | . . . Weapon 1 | . 1 . Highest Loss Streak 1 | . 1 1 Average Slot Usage (%) 94 | . 94 92 Engine 4 | . 4 . Core 9 | . 9 7 Treads 23 | . 24 . Wheel 3 | . 3 28 Storage 23 | . 23 28 Ballistic Gun 17 | . 17 14 Ballistic Cannon 7 | . 7 14 Special Weapon 1 | . 1 . Naked Turns . | . . . Heaviest Build 33 | 5 33 33 Greatest Support 40 | 3 40 24 Greatest Overweight (x) 2 | 1 2 1 Average Overweight (x) . | . . 1 Largest Inventory Capacity 14 | 4 14 14 Average Capacity 10 | 4 11 14 Most Carried 14 | 4 14 13 Average Carried 8 | 3 9 13 Final Capacity 14 | 4 14 14 Final Carried 13 | 4 13 13 Class Distribution -------------------- 100% | Mutant Dominant Class ---------------- Mutant | -10/Materials Mutant | -10/Mines Resources | -11 -10 -10 ----------- Run | Scr Mat Min Matter Collected 693 | 276 417 . Remotely . | . . . Salvage Created 981 | 165 769 47 Parts 61 | 13 43 5 Haulers Intercepted 2 | . 2 . Recyclers Shooed 3 | . 3 . Parts Field Recycled . | . . . Retrieved Matter . | . . . Parts Self-Destructed . | . . . Prevented . | . . . Kills | -11 -10 -10 ------- Run | Scr Mat Min Combat Hostiles Destroyed 18 | . 16 2 Guns 13 | . 12 1 Cannons 5 | . 4 1 Classes Destroyed 9 | 2 6 1 Worker 2 | . 2 . Tunneler 4 | 4 . . Hauler 2 | . 2 . Recycler 2 | 1 1 . Operator 2 | . 2 . Watcher 1 | . 1 . Swarmer 3 | . 3 . Grunt 14 | . 13 1 Assembled 1 | . . 1 Best Kill Streak 5 | 5 5 2 Combat Bots Only 3 | . 3 2 Max Kills in Single Turn 2 | 1 2 1 Gunslinging . | . . . Exploded . | . . . Melee . | . . . Uniques/NPCs Destroyed . | . . . Combat | -11 -10 -10 -------- Run | Scr Mat Min Damage Taken 1024 | . 749 275 Core 255 | . 206 49 Absorbed by Shields . | . . . Core Remaining (%) 100 | 100 . . Volleys Fired 117 | 13 95 9 Largest 2 | 2 2 2 Hottest 100 | 40 100 55 Shots Fired 217 | 26 173 18 Gun 155 | 26 120 9 Cannon 47 | . 38 9 Launcher . | . . . Special 15 | . 15 . Kinetic 202 | 26 158 18 Thermal 15 | . 15 . Explosive . | . . . Electromagnetic . | . . . Robot Hit Streak 16 | 10 16 8 Robot Miss Streak 4 | 1 4 2 Penetration Max . | . . . Secondary Targets 1 | . 1 . Max Gunslinging Chain 1 | . 1 . Shots Hit Robots 154 | 21 120 13 Core Hits 63 | 9 48 6 Critical Hits 2 | 1 1 . Critical Kills 1 | . 1 . Critical Parts Destroyed 1 | 1 . . Melee Attacks . | . . . Impact . | . . . Slashing . | . . . Piercing . | . . . Sneak Attacks . | . . . Combat Hostiles . | . . . Follow-up Attacks . | . . . Damage Inflicted 1679 | 192 1306 181 Guns 1003 | 192 761 50 Cannons 676 | . 545 131 Explosions . | . . . Melee . | . . . Ramming . | . . . Kinetic 1679 | 192 1306 181 Thermal . | . . . Explosive . | . . . Electromagnetic . | . . . Impact . | . . . Slashing . | . . . Piercing . | . . . Highest Corruption 5 | . 1 5 Average Corruption 1 | . 1 3 Corruption Purged . | . . . Effects 6 | . 4 2 Message Errors 1 | . 1 . Matter Fused 1 | . . 1 Energy Discharges 1 | . 1 . Data Loss (minor) 1 | . 1 . Targeting Errors 1 | . . 1 Weapon Failures 1 | . 1 . Overload Shots . | . . . Overflow Damage 18 | . . 18 Projectiles 18 | . . 18 Explosions . | . . . Melee . | . . . Knockbacks 12 | . 10 2 Impact . | . . . Kinetic 10 | . 8 2 Secondary 2 | . 2 . Self-Inflicted Damage . | . . . Shots . | . . . Rammed . | . . . Targets Rammed . | . . . Kicked . | . . . Crushed . | . . . Highest Temperature 80 | . 80 57 Average Temperature 19 | . 19 13 Received Heat Transfer 408 | . 342 66 Siege Activations . | . . . Robots Corrupted . | . . . Combat Hostiles . | . . . Parts Fried . | . . . Impact Corruptions . | . . . Robots Melted . | . . . Combat Hostiles . | . . . Parts Melted . | . . . Heat Transferred . | . . . Parts Sabotaged . | . . . Parts Stolen . | . . . Parts Stripped . | . . . Power Chain Reactions . | . . . Missiles Intercepted . | . . . Alert | -11 -10 -10 ------- Run | Scr Mat Min Peak Influence 334 | 25 334 112 Initial 92 | . 16 92 Average 171 | 8 181 104 Maximum Alert Level 1 | . 1 . Low Security (%) 56 | 100 52 100 Level 1 43 | . 47 . Level 2 . | . . . Level 3 . | . . . Level 4 . | . . . Level 5 . | . . . High Security . | . . . Max Security . | . . . Squads Dispatched 4 | . 4 . Investigation 2 | . 2 . Extermination . | . . . Reinforcement 2 | . 2 . Assault . | . . . Garrison . | . . . Intercept . | . . . Construction Impeded . | . . . Haulers Reinforced . | . . . Stealth | -11 -10 -10 --------- Run | Scr Mat Min Distress Signals 2 | . 2 . Communications Jammed . | . . . Distress Signals . | . . . Times Spotted 38 | . 31 7 Peak Tracking Total 5 | . 5 5 Tactical Retreats 3 | . 3 . Traps | -11 -10 -10 ------- Run | Scr Mat Min Traps Triggered 1 | . 1 . Indirectly . | . . . Trap Hack Attempts . | . . . Triggered . | . . . Disarmed . | . . . Reprogrammed . | . . . Reused . | . . . Traps Extracted . | . . . Installed . | . . . Triggered . | . . . Machines | -11 -10 -10 ---------- Run | Scr Mat Min Machines Disabled . | . . . Max in Single Turn . | . . . Machines Sabotaged . | . . . Garrisons Compromised . | . . . Overloaded Fab Kills . | . . . Fab Network Shutdowns . | . . . Hacking | -11 -10 -10 --------- Run | Scr Mat Min Machines Accessed 9 | . 9 . Terminals 6 | . 6 . Fabricators . | . . . Repair Stations 1 | . 1 . Recycling Units 2 | . 2 . Scanalyzers . | . . . Garrison Access . | . . . Total Hacks 35 | . 35 . Successful 26 | . 26 . Failed 8 | . 8 . Catastrophic . | . . . Database Lockouts 1 | . 1 . Manual 19 | . 19 . Terminals 24 | . 24 . Fabricators . | . . . Repair Stations 4 | . 4 . Recycling Units 7 | . 7 . Scanalyzers . | . . . Garrison Access . | . . . Terminal Hacks 10 | . 10 . Robot Analysis 4 | . 4 . Prototype ID Bank 2 | . 2 . Branch Access Points 1 | . 1 . Terminal Index 1 | . 1 . Locate Traps 1 | . 1 . Zone Layout 1 | . 1 . Fabricator Hacks . | . . . Repair Station Hacks 4 | . 4 . Scan Component 2 | . 2 . Repair 2 | . 2 . Recycling Unit Hacks 2 | . 2 . Retrieve Components 2 | . 2 . Scanalyzer . | . . . Garrison Access Hacks . | . . . Unauthorized Hacks 10 | . 10 . Terminals 7 | . 7 . Assimilate 1 | . 1 . Botnet 5 | . 5 . Operators 1 | . 1 . Fabricators . | . . . Repair Stations . | . . . Recycling Units 3 | . 3 . Recyclers 2 | . 2 . Tunnel 1 | . 1 . Scanalyzers . | . . . Garrison Access . | . . . Data Cores Recovered . | . . . Used . | . . . Hacking Detections 9 | . 9 . Full Trace Events 3 | . 3 . Feedback Events 1 | . 1 . Corruption 1 | . 1 . Feedback Blocked . | . . . Robot Schematics Acquired . | . . . Robots Built . | . . . Matter . | . . . Time . | . . . Total Robot Build Rating . | . . . Part Schematics Acquired . | . . . Parts Built . | . . . Matter . | . . . Time . | . . . Total Part Build Rating . | . . . Parts Repaired 2 | . 2 . Time 52 | . 52 . Parts Recycled . | . . . Recycled Matter . | . . . Retrieved Matter . | . . . Retrieved Components 16 | . 16 . Parts Scanalyzed . | . . . Part Schematics Acquired . | . . . Parts Damaged . | . . . Bothacking | -11 -10 -10 ------------ Run | Scr Mat Min Used RIF Installer . | . . . Robots Hacked . | . . . Non-combat . | . . . Combat . | . . . Robot Hacks Applied . | . . . Relay Couplers Released . | . . . Robots Rewired . | . . . Allies Hacked . | . . . Hacks Repelled . | . . . Allies | -11 -10 -10 -------- Run | Scr Mat Min Total Allies . | . . . Largest Group . | . . . Highest-Rated Group . | . . . Highest-Rated Ally . | . . . Total Orders . | . . . Ally Attacks . | . . . Total Damage . | . . . Kills . | . . . Allies Corrupted . | . . . Allies Melted . | . . . Intel | -11 -10 -10 ------- Run | Scr Mat Min Robot Analysis Total 4 | . 4 . Derelict Logs Recovered . | . . . Drone Launches . | . . . Drone Recoveries . | . . . Exploration | -11 -10 -10 ------------- Run | Scr Mat Min Turns Passed 1491 | 77 1379 35 Spaces Moved 745 | 46 692 7 Core 184 | 46 138 . Treads 410 | . 410 . Legs . | . . . Wheels 151 | . 144 7 Hover . | . . . Flight . | . . . Fastest Speed 50 | 50 100 100 Average Speed 130 | 61 135 100 Slowest Speed 160 | 100 160 100 Overloaded Moves . | . . . Propulsion Burnouts . | . . . Robots Hopped . | . . . Cave-ins Triggered . | . . . Exploration Rate (%) 35 | 5 97 4 Regions Visited 2 Branch Regions 1 Pre-discovered Areas 1 | . 1 . Known Exits Taken 1 | . 1 . Unknown Exits Taken 1 | 1 . . Scrap Searched . | . . . Spaces Dug 6 | . 6 . Terrain Destroyed 14 | . 14 . Melee . | . . . Projectile 14 | . 14 . AOE . | . . . Terrain Rammed . | . . . Walls Destroyed . | . . . Machines Disabled . | . . . Actions | -11 -10 -10 --------- Run | Scr Mat Min Total 1048 | 71 958 19 Wait 123 | 3 117 3 Move 743 | 45 691 7 Hop . | . . . Pick Up 28 | 5 23 . Fast Attach 11 | 4 7 . Attach 3 | 1 2 . Detach 3 | . 3 . Swap 6 | . 6 . Drop 14 | . 14 . Fire 117 | 13 95 9 Melee . | . . . Ram . | . . . Kick . | . . . Crush . | . . . Escape Stasis . | . . . Rewire . | . . . Trap . | . . . Miscellaneous . | . . . Route ------- -11/Scrapyard -10/Materials (discovered 5 exits: *Mat x3 / *Min x2) -10/Mines History --------- Turn | Location | Event 12 | -11/Scrapyard | Discovered new exit (range 16) 78 | -11/Scrapyard | Entered Materials 320 | -10/Materials | Build established: Mutant 362 | -10/Materials | Discovered new exit (range 7) 537 | -10/Materials | Core integrity fell below 50% 625 | -10/Materials | Discovered new exit (range 7) 756 | -10/Materials | Repaired Lgt. Assault Rifle 783 | -10/Materials | Repaired Lgt. Treads 934 | -10/Materials | Core integrity fell below 20% 1033 | -10/Materials | Discovered new exit (range 6) 1042 | -10/Materials | Identified exit to Materials 1068 | -10/Materials | Central database locked down 1119 | -10/Materials | Identified exit to Mines 1360 | -10/Materials | Discovered exit to Materials (range 16) 1457 | -10/Materials | Entered Mines 1458 | -10/Mines | Assembled infested the area 1476 | -10/Mines | Met a Derelict bent on vengeance 1492 | -10/Mines | Destroyed by as-83364 with Assembled Rifle Last Messages --------------- 01335_ LF 8|:DGV|&K9U8 U0LF:3EFO5 01354_ Acquired 25 matter. 01360_ EXIT=FOUND: MATERIALS 01437_ Extracted 2 energy. 01457_ Dropped Ion Engine. LOCATION=MINES GOAL=ESCAPE Something is scanning the area. 01458_ ALERT: Infestation in the mines, dispatching Demolisher response squad. 01460_ G-34 Mercenary destroyed. 01469_ G-47 Trooper destroyed. 01473_ as-28560 destroyed. 01473_ Lgt. Nuclear Core destroyed. 01473_ System corrupted by crushing effect (+4). 01476_ System corrupted: Lgt. Cannon targeting data glitched. 01479_ as-58122 knocked back. 01480_ System corrupted: Matter fused (-5). 01481_ Destroyed Asb. Hover Unit. 01484_ as-58122 knocked back. 01487_ Seismic Survey Station disabled. Map ----- +----------------------------------------------------+ | ?????????????????????????????? | | ?????????????????????????????? | | ?????????????????????????????? | | ?????????????????????????????? | | ?????????????????????????????? | | ?????????????????????????????? | | ?????????????????????????????? | | ?????????????????????????????? | | ?????????????????????????????? | | ?????????????????????????????? | | ?????????????????????????????? | | ?????????????????????????????? | | ?######?#????????????????????? | | ?# #????????????????????? | | ?# """ #????????????????????? | | ?# """ #?????#??????????????? | | ?# """ #### ##?????????????? | | ?# ??????????????? | | ?#=[% ?????????????????? | | ?#=%*! #????????????????????? | | ?# ![= #????????????????????? | | ?# #????????????????????? | | ?# """ #????????????????????? | | ?# """ #????????????????????? | | ?# a" " #????????????????????? | | ?# a@aa#????????????????????? | | ?########????????????????????? | | ?????????????????????????????? | | ?????????????????????????????? | | ?????????????????????????????? | | ?????????????????????????????? | | ?????????????????????????????? | | ?????????????????????????????? | | ?????????????????????????????? | | ?????????????????????????????? | | ?????????????????????????????? | | ?????????????????????????????? | | ?????????????????????????????? | | ?????????????????????????????? | | ?????????????????????????????? | | ?????????????????????????????? | | ?????????????????????????????? | | ?????????????????????????????? | | ?????????????????????????????? | | ?????????????????????????????? | | ?????????????????????????????? | | ?????????????????????????????? | | ?????????????????????????????? | | ?????????????????????????????? | | ?????????????????????????????? | +----------------------------------------------------+ Best States ------------- Heat Dissipation 25 Energy Generation 14 Energy Capacity 160 Matter Stores 300 Matter Capacity 300 Sight Range 16 Terrain Scan Density 10 Evasion (%) 50 Recoil Reduction 2 Item Schematics ----------------- None Robot Schematics ------------------ None Fabricated ------------ Nothing Alien Tech Used ----------------- None Achievements -------------- None Challenges ------------ None Game ------ Seed ThiefRelayManipulator Manual? 0 Play Time 00:14:08 Cumulative 399.1 hours Start 2021.07.16 @ 11:53:43 End 2021.07.16 @ 12:07:25 Sessions 1 Manual Loads 0 Difficulty Rogue Special Mode None Game No. 326 Rogue 326 Adventurer 0 Explorer 0 Win Type - Total 1 Types 0/0/0/1/0/0/0/0/0 Lore% 71 Gallery% 80 Achievement% 60 Wizard Run 0 Options --------- ASCII 0 Keyboard 1 Movement Numpad Keybinds 0 Fullscreen 1 Font 12/Terminus Map View 83x54 Tactical HUD 1 Map Filters NONE Filters NONE Steam 1 RUN: a5ba5d3a-c6a5-4838-8e5f-45e42528f769